Workbook

Sheet Map
C2: 1 | D2: 2 | E2: 3 | F2: 4 | G2: 5 | H2: 6 | I2: 7 | J2: 8 | K2: 9 | L2: 10 | M2: 11 | N2: 12 | O2: 13 | P2: 14 | Q2: 15 | R2: 16 | S2: 17 | T2: 18 | U2: 19 | V2: 20
B3: 1
B4: 2
B5: 3
B6: 4
B7: 5
B8: 6
B9: 7
B10: 8
B11: 9
B12: 10
B13: 11
B14: 12
B15: 13
B16: 14
B17: 15
B18: 16
B19: 17
B20: 18
B21: 19
B22: 20
B23: 21
B24: 22
B25: 23
B26: 24
B27: 25
B28: 26
B29: 27
B30: 28

Sheet Rooms
C3: 1 | D3: 2 | E3: 3 | F3: 4 | G3: 5 | H3: 6 | I3: 7 | J3: 8 | K3: 9 | L3: 10 | M3: 11 | N3: 12 | O3: 13 | P3: 14 | Q3: 15 | R3: 16 | S3: 17 | T3: 18 | U3: 19 | V3: 20
B4: 1
B5: 2
B6: 3
B7: 4
B8: 5
B9: 6
B10: 7
B11: 8
B12: 9
B13: 10
B14: 11
B15: 12
B16: 13
B17: 14
B18: 15
B19: 16
B20: 17
B21: 18
B22: 19
B23: 20
B24: 21
B25: 22
B26: 23
B27: 24
B28: 25
B29: 26
B30: 27
B31: 28
E35: Entrance Rooms
D37: 1 | Y37: 11 | AD37: 12
D42: 2
Y44: 13 | AG44: 14 | AL44: 15
D49: 3
BC52: Corridor
Y53: 16 | AG53: 21 | AN53: 22 | BC53: Room
D54: 4
D59: 5
D68: 6

Sheet Dice
B3: Sides | C3: 6 | D3: 6
I4: =D5 -> d6 | M4: 2d6 | Q4: d6xd6 | U4: d66
B5: n | C5: d6 | D5: ="d"&D3 -> d6 | E5: 2d6 | F5: d6xd6 | G5: d66 | I5: =SUM(I6:I11) -> 1 | K5: Hi | L5: Lo | M5: =SUM(M6:M17) -> 1 | O5: Hi | P5: Lo | Q5: =SUM(Q6:Q41) -> 1 | S5: Hi | T5: Lo | U5: =SUM(U6:U71) -> 1
B6: 1 | C6: =RANDBETWEEN(1,C$3) -> 2 | D6: =RANDBETWEEN(1,D$3) -> 1 | E6: =C6+D6 -> 3 | F6: =C6*D6 -> 2 | G6: =--(C6&D6) -> 21 | I6: =SUMPRODUCT(--($B6=D$6:D$10005))/10000 -> 0.17 | K6: 0 | L6: 0 | M6: =SUMPRODUCT(--($B6=E$6:E$10005))/10000 -> 0 | O6: 0.035 | P6: 0.022 | Q6: =SUMPRODUCT(--($B6=F$6:F$10005))/10000 -> 0.0292 | S6: 0 | T6: 0 | U6: =SUMPRODUCT(--($B6=G$6:G$10005))/10000 -> 0 | Y6: d6 | Z6: roll a die
B7: =B6+1 -> 2 | C7: =RANDBETWEEN(1,C$3) -> 4 | D7: 3 | E7: =C7+D7 -> 7 | F7: =C7*D7 -> 12 | G7: =--(C7&D7) -> 43 | I7: =SUMPRODUCT(--($B7=D$6:D$10005))/10000 -> 0.168 | K7: 0.035 | L7: 0.022 | M7: =SUMPRODUCT(--($B7=E$6:E$10005))/10000 -> 0.0292 | O7: 0.0638 | P7: 0.0475 | Q7: =SUMPRODUCT(--($B7=F$6:F$10005))/10000 -> 0.0531 | S7: 0 | T7: 0 | U7: =SUMPRODUCT(--($B7=G$6:G$10005))/10000 -> 0 | Y7: d6+1 | Z7: roll a die and add 1 to the result
B8: =B7+1 -> 3 | C8: 4 | D8: 4 | E8: 8 | F8: 16 | G8: 44 | I8: 0.1654 | K8: 0.0638 | L8: 0.0475 | M8: 0.0531 | O8: 0.0668 | P8: 0.0473 | Q8: 0.0537 | S8: 0 | T8: 0 | U8: 0 | Y8: 2d6 | Z8: roll two dice and add them together
B9: 4 | C9: 3 | D9: 5 | E9: 8 | F9: 15 | G9: 35 | I9: 0.1654 | K9: 0.0955 | L9: 0.0727 | M9: 0.0794 | O9: 0.0959 | P9: 0.0714 | Q9: 0.083 | S9: 0 | T9: 0 | U9: 0 | Y9: 2d6+1 | Z9: roll two dice, add them together and add 1
B10: 5 | C10: 4 | D10: 4 | E10: 8 | F10: 16 | G10: 44 | I10: 0.1625 | K10: 0.123 | L10: 0.1002 | M10: 0.1127 | O10: 0.0638 | P10: 0.0463 | Q10: 0.055 | S10: 0 | T10: 0 | U10: 0 | Y10: d6xd6 | Z10: roll two dice and multiply the result of one by the other
B11: 6 | C11: 2 | D11: 1 | E11: 3 | F11: 2 | G11: 21 | I11: 0.1687 | K11: 0.1503 | L11: 0.1248 | M11: 0.1387 | O11: 0.1236 | P11: 0.0993 | Q11: 0.1158 | S11: 0 | T11: 0 | U11: 0 | Y11: d66 | Z11: roll two dice read first as tens second as ones
B12: 7 | C12: 6 | D12: 2 | E12: 8 | F12: 12 | G12: 62 | K12: 0.1833 | L12: 0.1538 | M12: 0.1703 | O12: 0 | P12: 0 | Q12: 0 | S12: 0 | T12: 0 | U12: 0
B13: 8 | C13: 4 | D13: 1 | E13: 5 | F13: 4 | G13: 41 | K13: 0.1506 | L13: 0.1244 | M13: 0.1396 | O13: 0.0644 | P13: 0.0461 | Q13: 0.0576 | S13: 0 | T13: 0 | U13: 0
B14: 9 | C14: 6 | D14: 3 | E14: 9 | F14: 18 | G14: 63 | K14: 0.1254 | L14: 0.0996 | M14: 0.1136 | O14: 0.0336 | P14: 0.0223 | Q14: 0.0261 | S14: 0 | T14: 0 | U14: 0
B15: 10 | C15: 1 | D15: 4 | E15: 5 | F15: 4 | G15: 14 | K15: 0.093 | L15: 0.0732 | M15: 0.0821 | O15: 0.0647 | P15: 0.0472 | Q15: 0.0554 | S15: 0 | T15: 0 | U15: 0
B16: 11 | C16: 3 | D16: 1 | E16: 4 | F16: 3 | G16: 31 | K16: 0.0638 | L16: 0.0472 | M16: 0.0551 | O16: 0 | P16: 0 | Q16: 0 | S16: 0.035 | T16: 0.022 | U16: 0.0292
B17: 12 | C17: 4 | D17: 3 | E17: 7 | F17: 12 | G17: 43 | K17: 0.0336 | L17: 0.022 | M17: 0.0262 | O17: 0.1231 | P17: 0.1001 | Q17: 0.1111 | S17: 0.0339 | T17: 0.0214 | U17: 0.0266
B18: 13 | C18: 4 | D18: 3 | E18: 7 | F18: 12 | G18: 43 | O18: 0 | P18: 0 | Q18: 0 | S18: 0.0353 | T18: 0.0221 | U18: 0.028
B19: 14 | C19: 6 | D19: 6 | E19: 12 | F19: 36 | G19: 66 | O19: 0 | P19: 0 | Q19: 0 | S19: 0.0343 | T19: 0.0221 | U19: 0.0273
B20: 15 | C20: 3 | D20: 6 | E20: 9 | F20: 18 | G20: 36 | O20: 0.0636 | P20: 0.0473 | Q20: 0.055 | S20: 0.0337 | T20: 0.0217 | U20: 0.0271
B21: 16 | C21: 6 | D21: 1 | E21: 7 | F21: 6 | G21: 61 | O21: 0.0333 | P21: 0.0227 | Q21: 0.028 | S21: 0.0343 | T21: 0.0223 | U21: 0.0297
B22: 17 | C22: 5 | D22: 6 | E22: 11 | F22: 30 | G22: 56 | O22: 0 | P22: 0 | Q22: 0 | S22: 0 | T22: 0 | U22: 0
B23: 18 | C23: 2 | D23: 2 | E23: 4 | F23: 4 | G23: 22 | O23: 0.0639 | P23: 0.0465 | Q23: 0.0573 | S23: 0 | T23: 0 | U23: 0
B24: 19 | C24: 6 | D24: 5 | E24: 11 | F24: 30 | G24: 65 | O24: 0 | P24: 0 | Q24: 0 | S24: 0 | T24: 0 | U24: 0
B25: 20 | C25: 1 | D25: 5 | E25: 6 | F25: 5 | G25: 15 | O25: 0.0651 | P25: 0.0476 | Q25: 0.0563 | S25: 0 | T25: 0 | U25: 0
B26: 21 | C26: 1 | D26: 2 | E26: 3 | F26: 2 | G26: 12 | O26: 0 | P26: 0 | Q26: 0 | S26: 0.0338 | T26: 0.0214 | U26: 0.0265
B27: 22 | C27: 4 | D27: 5 | E27: 9 | F27: 20 | G27: 45 | O27: 0 | P27: 0 | Q27: 0 | S27: 0.0345 | T27: 0.0218 | U27: 0.0257
B28: 23 | C28: 6 | D28: 3 | E28: 9 | F28: 18 | G28: 63 | O28: 0 | P28: 0 | Q28: 0 | S28: 0.0331 | T28: 0.0219 | U28: 0.0263
B29: 24 | C29: 5 | D29: 6 | E29: 11 | F29: 30 | G29: 56 | O29: 0.0632 | P29: 0.0476 | Q29: 0.0553 | S29: 0.0341 | T29: 0.022 | U29: 0.0295
B30: 25 | C30: 1 | D30: 5 | E30: 6 | F30: 5 | G30: 15 | O30: 0.0334 | P30: 0.0221 | Q30: 0.0268 | S30: 0.0339 | T30: 0.0208 | U30: 0.0267
B31: 26 | C31: 6 | D31: 6 | E31: 12 | F31: 36 | G31: 66 | O31: 0 | P31: 0 | Q31: 0 | S31: 0.0338 | T31: 0.0219 | U31: 0.0268
B32: 27 | C32: 6 | D32: 2 | E32: 8 | F32: 12 | G32: 62 | O32: 0 | P32: 0 | Q32: 0 | S32: 0 | T32: 0 | U32: 0
B33: 28 | C33: 4 | D33: 2 | E33: 6 | F33: 8 | G33: 42 | O33: 0 | P33: 0 | Q33: 0 | S33: 0 | T33: 0 | U33: 0
B34: 29 | C34: 1 | D34: 4 | E34: 5 | F34: 4 | G34: 14 | O34: 0 | P34: 0 | Q34: 0 | S34: 0 | T34: 0 | U34: 0
B35: 30 | C35: 4 | D35: 1 | E35: 5 | F35: 4 | G35: 41 | O35: 0.0638 | P35: 0.0469 | Q35: 0.0551 | S35: 0 | T35: 0 | U35: 0
B36: 31 | C36: 5 | D36: 1 | E36: 6 | F36: 5 | G36: 51 | O36: 0 | P36: 0 | Q36: 0 | S36: 0.0345 | T36: 0.0213 | U36: 0.0257
B37: 32 | C37: 3 | D37: 1 | E37: 4 | F37: 3 | G37: 31 | O37: 0 | P37: 0 | Q37: 0 | S37: 0.0345 | T37: 0.021 | U37: 0.0291
B38: 33 | C38: 2 | D38: 4 | E38: 6 | F38: 8 | G38: 24 | O38: 0 | P38: 0 | Q38: 0 | S38: 0.0336 | T38: 0.0219 | U38: 0.0261
B39: 34 | C39: 1 | D39: 6 | E39: 7 | F39: 6 | G39: 16 | O39: 0 | P39: 0 | Q39: 0 | S39: 0.034 | T39: 0.021 | U39: 0.0261
B40: 35 | C40: 3 | D40: 3 | E40: 6 | F40: 9 | G40: 33 | O40: 0 | P40: 0 | Q40: 0 | S40: 0.0343 | T40: 0.0218 | U40: 0.027
B41: 36 | C41: 1 | D41: 3 | E41: 4 | F41: 3 | G41: 13 | O41: 0.0336 | P41: 0.022 | Q41: 0.0262 | S41: 0.0348 | T41: 0.0211 | U41: 0.0287
B42: 37 | C42: 6 | D42: 4 | E42: 10 | F42: 24 | G42: 64 | S42: 0 | T42: 0 | U42: 0
B43: 38 | C43: 3 | D43: 2 | E43: 5 | F43: 6 | G43: 32 | S43: 0 | T43: 0 | U43: 0
B44: 39 | C44: 3 | D44: 5 | E44: 8 | F44: 15 | G44: 35 | S44: 0 | T44: 0 | U44: 0
B45: 40 | C45: 5 | D45: 2 | E45: 7 | F45: 10 | G45: 52 | S45: 0 | T45: 0 | U45: 0
B46: 41 | C46: 6 | D46: 3 | E46: 9 | F46: 18 | G46: 63 | S46: 0.0337 | T46: 0.0221 | U46: 0.03
B47: 42 | C47: 6 | D47: 3 | E47: 9 | F47: 18 | G47: 63 | S47: 0.0344 | T47: 0.0221 | U47: 0.0281
B48: 43 | C48: 4 | D48: 4 | E48: 8 | F48: 16 | G48: 44 | S48: 0.0336 | T48: 0.0222 | U48: 0.0284
B49: 44 | C49: 1 | D49: 1 | E49: 2 | F49: 1 | G49: 11 | S49: 0.0334 | T49: 0.0227 | U49: 0.028
B50: 45 | C50: 1 | D50: 2 | E50: 3 | F50: 2 | G50: 12 | S50: 0.0341 | T50: 0.0223 | U50: 0.028
B51: 46 | C51: 6 | D51: 3 | E51: 9 | F51: 18 | G51: 63 | S51: 0.034 | T51: 0.022 | U51: 0.0291
B52: 47 | C52: 3 | D52: 3 | E52: 6 | F52: 9 | G52: 33 | S52: 0 | T52: 0 | U52: 0
B53: 48 | C53: 1 | D53: 1 | E53: 2 | F53: 1 | G53: 11 | S53: 0 | T53: 0 | U53: 0
B54: 49 | C54: 3 | D54: 1 | E54: 4 | F54: 3 | G54: 31 | S54: 0 | T54: 0 | U54: 0
B55: 50 | C55: 5 | D55: 1 | E55: 6 | F55: 5 | G55: 51 | S55: 0 | T55: 0 | U55: 0
B56: 51 | C56: 4 | D56: 1 | E56: 5 | F56: 4 | G56: 41 | S56: 0.0338 | T56: 0.0219 | U56: 0.0279
B57: 52 | C57: 6 | D57: 5 | E57: 11 | F57: 30 | G57: 65 | S57: 0.0344 | T57: 0.0222 | U57: 0.0287
B58: 53 | C58: 6 | D58: 1 | E58: 7 | F58: 6 | G58: 61 | S58: 0.0339 | T58: 0.0215 | U58: 0.028
B59: 54 | C59: 1 | D59: 4 | E59: 5 | F59: 4 | G59: 14 | S59: 0.0339 | T59: 0.0223 | U59: 0.0283
B60: 55 | C60: 5 | D60: 4 | E60: 9 | F60: 20 | G60: 54 | S60: 0.034 | T60: 0.0221 | U60: 0.0268
B61: 56 | C61: 3 | D61: 5 | E61: 8 | F61: 15 | G61: 35 | S61: 0.0337 | T61: 0.0227 | U61: 0.0282
B62: 57 | C62: 2 | D62: 1 | E62: 3 | F62: 2 | G62: 21 | S62: 0 | T62: 0 | U62: 0
B63: 58 | C63: 2 | D63: 6 | E63: 8 | F63: 12 | G63: 26 | S63: 0 | T63: 0 | U63: 0
B64: 59 | C64: 5 | D64: 6 | E64: 11 | F64: 30 | G64: 56 | S64: 0 | T64: 0 | U64: 0
B65: 60 | C65: 4 | D65: 2 | E65: 6 | F65: 8 | G65: 42 | S65: 0 | T65: 0 | U65: 0
B66: 61 | C66: 1 | D66: 4 | E66: 5 | F66: 4 | G66: 14 | S66: 0.0341 | T66: 0.022 | U66: 0.0307
B67: 62 | C67: 5 | D67: 3 | E67: 8 | F67: 15 | G67: 53 | S67: 0.0344 | T67: 0.0221 | U67: 0.0298
B68: 63 | C68: 5 | D68: 3 | E68: 8 | F68: 15 | G68: 53 | S68: 0.0338 | T68: 0.022 | U68: 0.0286
B69: 64 | C69: 2 | D69: 1 | E69: 3 | F69: 2 | G69: 21 | S69: 0.0334 | T69: 0.0226 | U69: 0.0262
B70: 65 | C70: 3 | D70: 3 | E70: 6 | F70: 9 | G70: 33 | S70: 0.0338 | T70: 0.022 | U70: 0.0269
B71: 66 | C71: =RANDBETWEEN(1,C$3) -> 4 | D71: 4 | E71: =C71+D71 -> 8 | F71: =C71*D71 -> 16 | G71: =--(C71&D71) -> 44 | S71: 0.0336 | T71: 0.022 | U71: =SUMPRODUCT(--($B71=G$6:G$10005))/10000 -> 0.0262
B72: =B71+1 -> 67 | C72: 2 | D72: 4 | E72: 6 | F72: 8 | G72: 24
B73: 68 | C73: 5 | D73: 4 | E73: 9 | F73: 20 | G73: 54
B74: 69 | C74: 5 | D74: 1 | E74: 6 | F74: 5 | G74: 51
B75: 70 | C75: 1 | D75: 1 | E75: 2 | F75: 1 | G75: 11
B76: 71 | C76: 2 | D76: 2 | E76: 4 | F76: 4 | G76: 22
B77: 72 | C77: 2 | D77: 2 | E77: 4 | F77: 4 | G77: 22
B78: 73 | C78: 1 | D78: 4 | E78: 5 | F78: 4 | G78: 14
B79: 74 | C79: 5 | D79: 3 | E79: 8 | F79: 15 | G79: 53
B80: 75 | C80: 6 | D80: 4 | E80: 10 | F80: 24 | G80: 64
B81: 76 | C81: 5 | D81: 6 | E81: 11 | F81: 30 | G81: 56
B82: 77 | C82: 3 | D82: 1 | E82: 4 | F82: 3 | G82: 31
B83: 78 | C83: 5 | D83: 3 | E83: 8 | F83: 15 | G83: 53
B84: 79 | C84: 3 | D84: 5 | E84: 8 | F84: 15 | G84: 35
B85: 80 | C85: 6 | D85: 5 | E85: 11 | F85: 30 | G85: 65
B86: 81 | C86: 5 | D86: 3 | E86: 8 | F86: 15 | G86: 53
B87: 82 | C87: 3 | D87: 3 | E87: 6 | F87: 9 | G87: 33
B88: 83 | C88: 2 | D88: 2 | E88: 4 | F88: 4 | G88: 22
B89: 84 | C89: 2 | D89: 3 | E89: 5 | F89: 6 | G89: 23
B90: 85 | C90: 1 | D90: 6 | E90: 7 | F90: 6 | G90: 16
B91: 86 | C91: 6 | D91: 2 | E91: 8 | F91: 12 | G91: 62
B92: 87 | C92: 2 | D92: 5 | E92: 7 | F92: 10 | G92: 25
B93: 88 | C93: 5 | D93: 4 | E93: 9 | F93: 20 | G93: 54
B94: 89 | C94: 1 | D94: 5 | E94: 6 | F94: 5 | G94: 15
B95: 90 | C95: 6 | D95: 1 | E95: 7 | F95: 6 | G95: 61
B96: 91 | C96: 3 | D96: 5 | E96: 8 | F96: 15 | G96: 35
B97: 92 | C97: 6 | D97: 3 | E97: 9 | F97: 18 | G97: 63
B98: 93 | C98: 4 | D98: 4 | E98: 8 | F98: 16 | G98: 44
B99: 94 | C99: 5 | D99: 1 | E99: 6 | F99: 5 | G99: 51
B100: 95 | C100: 2 | D100: 6 | E100: 8 | F100: 12 | G100: 26
B101: 96 | C101: 3 | D101: 6 | E101: 9 | F101: 18 | G101: 36
B102: 97 | C102: 5 | D102: 4 | E102: 9 | F102: 20 | G102: 54
B103: 98 | C103: 3 | D103: 4 | E103: 7 | F103: 12 | G103: 34
B104: 99 | C104: 4 | D104: 5 | E104: 9 | F104: 20 | G104: 45
B105: 100 | C105: 2 | D105: 1 | E105: 3 | F105: 2 | G105: 21
B106: 101 | C106: 6 | D106: 1 | E106: 7 | F106: 6 | G106: 61
B107: 102 | C107: 6 | D107: 6 | E107: 12 | F107: 36 | G107: 66
B108: 103 | C108: 3 | D108: 2 | E108: 5 | F108: 6 | G108: 32
B109: 104 | C109: 4 | D109: 3 | E109: 7 | F109: 12 | G109: 43
B110: 105 | C110: 6 | D110: 5 | E110: 11 | F110: 30 | G110: 65
B111: 106 | C111: 2 | D111: 3 | E111: 5 | F111: 6 | G111: 23
B112: 107 | C112: 3 | D112: 4 | E112: 7 | F112: 12 | G112: 34
B113: 108 | C113: 5 | D113: 1 | E113: 6 | F113: 5 | G113: 51
B114: 109 | C114: 5 | D114: 2 | E114: 7 | F114: 10 | G114: 52
B115: 110 | C115: 3 | D115: 1 | E115: 4 | F115: 3 | G115: 31
B116: 111 | C116: 6 | D116: 1 | E116: 7 | F116: 6 | G116: 61
B117: 112 | C117: 3 | D117: 6 | E117: 9 | F117: 18 | G117: 36
B118: 113 | C118: 6 | D118: 4 | E118: 10 | F118: 24 | G118: 64
B119: 114 | C119: 6 | D119: 6 | E119: 12 | F119: 36 | G119: 66
B120: 115 | C120: 6 | D120: 2 | E120: 8 | F120: 12 | G120: 62
B121: 116 | C121: 5 | D121: 2 | E121: 7 | F121: 10 | G121: 52
B122: 117 | C122: 4 | D122: 5 | E122: 9 | F122: 20 | G122: 45
B123: 118 | C123: 6 | D123: 1 | E123: 7 | F123: 6 | G123: 61
B124: 119 | C124: 3 | D124: 5 | E124: 8 | F124: 15 | G124: 35
B125: 120 | C125: 5 | D125: 5 | E125: 10 | F125: 25 | G125: 55
B126: 121 | C126: 1 | D126: 1 | E126: 2 | F126: 1 | G126: 11
B127: 122 | C127: 4 | D127: 1 | E127: 5 | F127: 4 | G127: 41
B128: 123 | C128: 4 | D128: 6 | E128: 10 | F128: 24 | G128: 46
B129: 124 | C129: 4 | D129: 1 | E129: 5 | F129: 4 | G129: 41
B130: 125 | C130: 6 | D130: 5 | E130: 11 | F130: 30 | G130: 65
B131: 126 | C131: 2 | D131: 5 | E131: 7 | F131: 10 | G131: 25
B132: 127 | C132: 3 | D132: 4 | E132: 7 | F132: 12 | G132: 34
B133: 128 | C133: 6 | D133: 6 | E133: 12 | F133: 36 | G133: 66
B134: 129 | C134: 4 | D134: 3 | E134: 7 | F134: 12 | G134: 43
B135: 130 | C135: =RANDBETWEEN(1,C$3) -> 5 | D135: 4 | E135: =C135+D135 -> 9 | F135: =C135*D135 -> 20 | G135: =--(C135&D135) -> 54
B136: =B135+1 -> 131 | C136: 4 | D136: 5 | E136: 9 | F136: 20 | G136: 45
B137: 132 | C137: 5 | D137: 1 | E137: 6 | F137: 5 | G137: 51
B138: 133 | C138: 6 | D138: 6 | E138: 12 | F138: 36 | G138: 66
B139: 134 | C139: 4 | D139: 1 | E139: 5 | F139: 4 | G139: 41
B140: 135 | C140: 3 | D140: 4 | E140: 7 | F140: 12 | G140: 34
B141: 136 | C141: 5 | D141: 6 | E141: 11 | F141: 30 | G141: 56
B142: 137 | C142: 6 | D142: 1 | E142: 7 | F142: 6 | G142: 61
B143: 138 | C143: 4 | D143: 3 | E143: 7 | F143: 12 | G143: 43
B144: 139 | C144: 6 | D144: 5 | E144: 11 | F144: 30 | G144: 65
B145: 140 | C145: 3 | D145: 2 | E145: 5 | F145: 6 | G145: 32
B146: 141 | C146: 2 | D146: 5 | E146: 7 | F146: 10 | G146: 25
B147: 142 | C147: 1 | D147: 5 | E147: 6 | F147: 5 | G147: 15
B148: 143 | C148: 4 | D148: 4 | E148: 8 | F148: 16 | G148: 44
B149: 144 | C149: 5 | D149: 3 | E149: 8 | F149: 15 | G149: 53
B150: 145 | C150: 4 | D150: 1 | E150: 5 | F150: 4 | G150: 41
B151: 146 | C151: 3 | D151: 3 | E151: 6 | F151: 9 | G151: 33
B152: 147 | C152: 4 | D152: 1 | E152: 5 | F152: 4 | G152: 41
B153: 148 | C153: 5 | D153: 5 | E153: 10 | F153: 25 | G153: 55
B154: 149 | C154: 1 | D154: 1 | E154: 2 | F154: 1 | G154: 11
B155: 150 | C155: 4 | D155: 6 | E155: 10 | F155: 24 | G155: 46
B156: 151 | C156: 2 | D156: 6 | E156: 8 | F156: 12 | G156: 26
B157: 152 | C157: 1 | D157: 4 | E157: 5 | F157: 4 | G157: 14
B158: 153 | C158: 6 | D158: 2 | E158: 8 | F158: 12 | G158: 62
B159: 154 | C159: 3 | D159: 4 | E159: 7 | F159: 12 | G159: 34
B160: 155 | C160: 5 | D160: 1 | E160: 6 | F160: 5 | G160: 51
B161: 156 | C161: 4 | D161: 1 | E161: 5 | F161: 4 | G161: 41
B162: 157 | C162: 1 | D162: 6 | E162: 7 | F162: 6 | G162: 16
B163: 158 | C163: 6 | D163: 4 | E163: 10 | F163: 24 | G163: 64
B164: 159 | C164: 3 | D164: 3 | E164: 6 | F164: 9 | G164: 33
B165: 160 | C165: 3 | D165: 3 | E165: 6 | F165: 9 | G165: 33
B166: 161 | C166: 2 | D166: 4 | E166: 6 | F166: 8 | G166: 24
B167: 162 | C167: 3 | D167: 1 | E167: 4 | F167: 3 | G167: 31
B168: 163 | C168: 3 | D168: 2 | E168: 5 | F168: 6 | G168: 32
B169: 164 | C169: 6 | D169: 1 | E169: 7 | F169: 6 | G169: 61
B170: 165 | C170: 2 | D170: 3 | E170: 5 | F170: 6 | G170: 23
B171: 166 | C171: 5 | D171: 4 | E171: 9 | F171: 20 | G171: 54
B172: 167 | C172: 6 | D172: 1 | E172: 7 | F172: 6 | G172: 61
B173: 168 | C173: 3 | D173: 6 | E173: 9 | F173: 18 | G173: 36
B174: 169 | C174: 2 | D174: 1 | E174: 3 | F174: 2 | G174: 21
B175: 170 | C175: 5 | D175: 3 | E175: 8 | F175: 15 | G175: 53
B176: 171 | C176: 2 | D176: 5 | E176: 7 | F176: 10 | G176: 25
B177: 172 | C177: 4 | D177: 6 | E177: 10 | F177: 24 | G177: 46
B178: 173 | C178: 6 | D178: 1 | E178: 7 | F178: 6 | G178: 61
B179: 174 | C179: 2 | D179: 2 | E179: 4 | F179: 4 | G179: 22
B180: 175 | C180: 5 | D180: 4 | E180: 9 | F180: 20 | G180: 54
B181: 176 | C181: 4 | D181: 6 | E181: 10 | F181: 24 | G181: 46
B182: 177 | C182: 3 | D182: 2 | E182: 5 | F182: 6 | G182: 32
B183: 178 | C183: 2 | D183: 2 | E183: 4 | F183: 4 | G183: 22
B184: 179 | C184: 5 | D184: 5 | E184: 10 | F184: 25 | G184: 55
B185: 180 | C185: 5 | D185: 2 | E185: 7 | F185: 10 | G185: 52
B186: 181 | C186: 4 | D186: 2 | E186: 6 | F186: 8 | G186: 42
B187: 182 | C187: 3 | D187: 1 | E187: 4 | F187: 3 | G187: 31
B188: 183 | C188: 2 | D188: 4 | E188: 6 | F188: 8 | G188: 24
B189: 184 | C189: 4 | D189: 1 | E189: 5 | F189: 4 | G189: 41
B190: 185 | C190: 2 | D190: 5 | E190: 7 | F190: 10 | G190: 25
B191: 186 | C191: 1 | D191: 3 | E191: 4 | F191: 3 | G191: 13
B192: 187 | C192: 3 | D192: 4 | E192: 7 | F192: 12 | G192: 34
B193: 188 | C193: 6 | D193: 1 | E193: 7 | F193: 6 | G193: 61
B194: 189 | C194: 3 | D194: 3 | E194: 6 | F194: 9 | G194: 33
B195: 190 | C195: 3 | D195: 3 | E195: 6 | F195: 9 | G195: 33
B196: 191 | C196: 6 | D196: 3 | E196: 9 | F196: 18 | G196: 63
B197: 192 | C197: 4 | D197: 3 | E197: 7 | F197: 12 | G197: 43
B198: 193 | C198: 1 | D198: 2 | E198: 3 | F198: 2 | G198: 12
B199: 194 | C199: =RANDBETWEEN(1,C$3) -> 5 | D199: 5 | E199: =C199+D199 -> 10 | F199: =C199*D199 -> 25 | G199: =--(C199&D199) -> 55
B200: =B199+1 -> 195 | C200: 4 | D200: 2 | E200: 6 | F200: 8 | G200: 42
B201: 196 | C201: 5 | D201: 6 | E201: 11 | F201: 30 | G201: 56
B202: 197 | C202: 4 | D202: 4 | E202: 8 | F202: 16 | G202: 44
... 9803 more rows

Sheet Sheet3
C5: Name | D5: Category | E5: Type | F5: Roll Mod | G5: Cost | H5: Hands
B6: 1 | C6: Axe | D6: Hand Weapon | E6: Slash | F6: 0 | G6: 6 | H6: 1
B7: =B6+1 -> 2 | C7: Rapier | D7: Hand Weapon | E7: Slash | F7: 0 | G7: 6 | H7: 1
B8: =B7+1 -> 3 | C8: Sabre | D8: Hand Weapon | E8: Slash | F8: 0 | G8: 6 | H8: 1
B9: 4 | C9: Spear | D9: Hand Weapon | E9: Slash | F9: 0 | G9: 6 | H9: 1
B10: 5 | C10: Sword | D10: Hand Weapon | E10: Slash | F10: 0 | G10: 6 | H10: 1
B11: 6 | C11: Hammer | D11: Hand Weapon | E11: Crush | F11: 0 | G11: 6 | H11: 1
B12: 7 | C12: Mace | D12: Hand Weapon | E12: Crush | F12: 0 | G12: 6 | H12: 1
B13: 8 | C13: Metal Rod | D13: Hand Weapon | E13: Crush | F13: 0 | G13: 6 | H13: 1
B15: 1 | C15: Dagger | D15: Light Hand Weapon | E15: Slash | F15: -1 | G15: 5 | H15: 1
B16: =B15+1 -> 2 | C16: Knife | D16: Light Hand Weapon | E16: Slash | F16: -1 | G16: 5 | H16: 1
B17: =B16+1 -> 3 | C17: Short Sword | D17: Light Hand Weapon | E17: Slash | F17: -1 | G17: 5 | H17: 1
B18: 4 | C18: Club | D18: Light Hand Weapon | E18: Crush | F18: -1 | G18: 5 | H18: 1
B19: 5 | C19: Cudgel | D19: Light Hand Weapon | E19: Crush | F19: -1 | G19: 5 | H19: 1
B20: 6 | C20: Jo Stick | D20: Light Hand Weapon | E20: Crush | F20: -1 | G20: 5 | H20: 1
B21: 7 | C21: Nunchaki | D21: Light Hand Weapon | E21: Crush | F21: -1 | G21: 5 | H21: 1
B22: 8 | C22: Shillelagh | D22: Light Hand Weapon | E22: Crush | F22: -1 | G22: 5 | H22: 1
B23: 9 | C23: Staff | D23: Light Hand Weapon | E23: Crush | F23: -1 | G23: 5 | H23: 1
B24: 10 | C24: Walking Stick | D24: Light Hand Weapon | E24: Crush | F24: -1 | G24: 5 | H24: 1
B25: 11 | C25: Wizard's Staff | D25: Light Hand Weapon | E25: Crush | F25: -1 | G25: 5 | H25: 1
B27: 1 | C27: Glaive | D27: Two-Handed Weapon | E27: Slash | F27: 1 | G27: 15 | H27: 2
B28: =B27+1 -> 2 | C28: Halberd | D28: Two-Handed Weapon | E28: Slash | F28: 1 | G28: 15 | H28: 2
B29: =B28+1 -> 3 | C29: Long Spear | D29: Two-Handed Weapon | E29: Slash | F29: 1 | G29: 15 | H29: 2
B30: 4 | C30: Naginata | D30: Two-Handed Weapon | E30: Slash | F30: 1 | G30: 15 | H30: 2
B31: 5 | C31: Pike | D31: Two-Handed Weapon | E31: Slash | F31: 1 | G31: 15 | H31: 2
B32: 6 | C32: Two-Handed Sword | D32: Two-Handed Weapon | E32: Slash | F32: 1 | G32: 15 | H32: 2
B33: 7 | C33: Huge Warclub | D33: Two-Handed Weapon | E33: Crush | F33: 1 | G33: 15 | H33: 2
B34: 8 | C34: Maul | D34: Two-Handed Weapon | E34: Crush | F34: 1 | G34: 15 | H34: 2
B35: 9 | C35: Quarterstaff | D35: Two-Handed Weapon | E35: Crush | F35: 1 | G35: 15 | H35: 2
B36: 10 | C36: War Hammer | D36: Two-Handed Weapon | E36: Crush | F36: 1 | G36: 15 | H36: 2
B38: 1 | C38: Bow | D38: Ranged | E38: Slash | F38: 0 | G38: 15
B39: =B38+1 -> 2 | C39: Crossbow | D39: Ranged | E39: Slash | F39: 0
B40: =B39+1 -> 3 | C40: Javelin | D40: Ranged | E40: Slash | F40: 0
B41: 4 | C41: Sling | D41: Ranged | E41: Crush | F41: -1 | G41: 4
B42: 5 | C42: Throwing Stick | D42: Ranged | E42: Crush | F42: -1
